bitfinex-derivatives/quotes_BTCF0:USTF0_20241213
["timestamp","ask_amount","ask_price","bid_price","bid_amount"]
[1734087564883,1.610021,100550.0,100530.0,9.269e-05]
[1734087565083,0.049728,100530.0,100520.0,0.0635]
[1734087565282,0.68401064,100530.0,100520.0,0.0635]
[1734087565487,0.86286921,100530.0,100520.0,0.0306]
[1734087565678,0.049733,100520.0,100510.0,0.03452]
[1734087565882,0.74344462,100520.0,100510.0,0.03452]
[1734087566482,0.74344462,100520.0,100510.0,0.00192]
[1734087566688,0.84293225,100520.0,100510.0,0.00192]
[1734087566888,0.84293225,100520.0,100510.0,0.01092]
[1734087567192,0.84293225,100520.0,100510.0,0.01992]
[1734087567491,0.7239197,100520.0,100510.0,0.01992]
[1734087567984,0.84293225,100520.0,100510.0,0.01992]
[1734087568490,0.84281175,100520.0,100510.0,0.01992]
[1734087569990,0.91382676,100520.0,100510.0,0.01992]
[1734087570190,1.00633083,100520.0,100510.0,0.01992]
[1734087570489,1.00633083,100520.0,100490.0,0.04086673]
[1734087570688,0.53518266,100500.0,100490.0,0.00149261]
[1734087571378,0.99547029,100500.0,100490.0,0.00149261]
[1734087572187,0.87083063,100500.0,100490.0,0.00149261]
[1734087572399,0.93315046,100500.0,100490.0,0.03209261]
[1734087572687,0.87183063,100500.0,100490.0,0.03909261]
[1734087572882,0.89798266,100500.0,100490.0,0.04809261]
[1734087573582,0.53718266,100500.0,100490.0,0.04809261]
[1734087575186,0.50763434,100500.0,100490.0,0.04809261]
[1734087578796,0.61595324,100500.0,100490.0,0.01749261]
[1734087582980,0.50763434,100500.0,100490.0,0.06724061]
[1734087583183,0.50763434,100500.0,100490.0,0.10044061]
[1734087583384,0.412543,100500.0,100490.0,0.10044061]
[1734087583585,0.051743,100500.0,100490.0,0.10044061]
[1734087585192,0.412543,100500.0,100490.0,0.10044061]
[1734087585499,0.14683434,100500.0,100490.0,0.10044061]
[1734087589602,0.14683434,100500.0,100490.0,0.27749997]
[1734087590695,0.14683434,100500.0,100490.0,0.27600736]
[1734087591401,0.14683434,100500.0,100490.0,0.31954935]
[1734087592494,0.14683434,100500.0,100490.0,0.5556285]
[1734087593507,0.23590356,100500.0,100490.0,0.5556285]
[1734087594505,0.35491611,100500.0,100490.0,0.98369141]
[1734087594910,0.35491611,100500.0,100490.0,0.95049141]
[1734087595203,0.32222377,100500.0,100490.0,0.95049141]
[1734087595400,0.74542277,100500.0,100490.0,0.64046807]
[1734087595599,0.74542277,100500.0,100490.0,0.95083223]
[1734087595803,0.74542277,100500.0,100490.0,0.64046807]
[1734087596406,0.80519653,100500.0,100490.0,0.95099679]
[1734087599206,0.44439653,100500.0,100490.0,0.95099679]
[1734087599400,0.80519653,100500.0,100490.0,0.95099679]
[1734087600009,0.68618398,100500.0,100490.0,0.95099679]
[1734087600200,0.78569141,100500.0,100490.0,0.90124879]
[1734087600409,0.66089341,100500.0,100490.0,0.90124879]
[1734087600711,0.81759141,100500.0,100490.0,0.95099679]
[1734087601099,0.81215571,100500.0,100490.0,0.95099679]
[1734087601411,0.75519241,100500.0,100490.0,0.95099679]
[1734087601804,0.87455875,100500.0,100490.0,0.95099679]
[1734087602309,0.74314807,100500.0,100490.0,0.95099679]
[1734087604703,0.62378173,100500.0,100490.0,0.9074548]
[1734087605098,0.62378173,100500.0,100490.0,0.67137565]
[1734087605305,0.74314856,100500.0,100490.0,0.67137565]
[1734087605706,0.74314856,100500.0,100490.0,0.67135369]
[1734087606116,0.62378173,100500.0,100490.0,0.67135369]
[1734087606805,0.56138598,100500.0,100490.0,0.67135369]
[1734087607106,0.74314979,100500.0,100490.0,0.952118]
[1734087607709,0.74314979,100500.0,100490.0,0.71489781]
[1734087607710,0.62378173,100500.0,100490.0,0.71489781]
[1734087607901,0.68617748,100500.0,100490.0,0.67135369]
[1734087608207,0.68617748,100500.0,100490.0,0.54832447]
[1734087608615,0.68617748,100500.0,100490.0,0.25322554]
[1734087609110,0.78568491,100500.0,100490.0,0.25322554]
[1734087609311,0.81701437,100500.0,100490.0,0.25322554]
[1734087611309,0.99587294,100500.0,100490.0,0.43114626]
[1734087611519,0.99587294,100500.0,100490.0,0.47469112]
[1734087617604,0.93346246,100500.0,100490.0,0.52443912]
[1734087617800,0.27019592,100500.0,100490.0,1.01484796]
[1734087618011,0.21086426,100500.0,100490.0,1.13174114]
[1734087618216,0.21086426,100500.0,100490.0,1.16484114]
[1734087619109,0.27327474,100500.0,100490.0,1.16484114]
[1734087620310,0.38542822,100500.0,100490.0,1.06933066]
[1734087620506,0.32301774,100500.0,100490.0,0.71521194]
[1734087621010,0.38542822,100500.0,100490.0,0.71521194]
[1734087622219,0.80555988,100500.0,100490.0,0.95226482]
[1734087622512,0.80555988,100500.0,100490.0,0.90251682]
[1734087622513,0.90506731,100500.0,100490.0,0.90251682]
[1734087622716,0.90506731,100500.0,100490.0,0.25305288]
[1734087622917,0.90506731,100500.0,100490.0,0.47441398]
[1734087623510,0.96457294,100500.0,100490.0,0.47441863]
[1734087623710,0.96457294,100500.0,100490.0,0.43087416]
[1734087623711,0.81591437,100500.0,100490.0,0.43087416]
[1734087623909,1.05718342,100500.0,100490.0,0.19382128]
[1734087624110,0.84592996,100500.0,100490.0,0.19382128]
[1734087626212,0.84592996,100500.0,100490.0,0.016]
[1734087626517,0.049748,100490.0,100480.0,0.17782128]
[1734087626707,0.92863936,100490.0,100480.0,0.22137331]
[1734087627025,0.049753,100480.0,100470.0,0.41487416]
[1734087627322,0.80379945,100480.0,100470.0,0.45842688]
[1734087628024,0.80379945,100480.0,100470.0,0.52083736]
[1734087628025,0.52985322,100480.0,100470.0,0.52083736]
[1734087628224,0.20873886,100480.0,100470.0,0.2806056]
[1734087628413,0.20873886,100480.0,100470.0,0.99834313]
[1734087628718,0.001,100480.0,100470.0,1.51220897]
[1734087628924,0.002,100480.0,100470.0,1.52120897]
[1734087629421,0.002,100480.0,100470.0,1.16709025]
[1734087629722,0.002,100480.0,100470.0,1.52120897]
[1734087630619,0.002,100480.0,100470.0,1.16040897]
[1734087630918,0.11416348,100480.0,100470.0,1.09799849]
[1734087631225,0.23631252,100480.0,100470.0,0.9807741]
[1734087631423,0.14119164,100480.0,100470.0,0.9807741]
[1734087632717,0.051753,100480.0,100470.0,0.97964944]
[1734087632909,0.14119164,100480.0,100470.0,0.97964944]
[1734087633313,0.051753,100480.0,100470.0,0.97964944]
[1734087633724,0.14119164,100480.0,100470.0,0.97964944]
[1734087635614,0.59711252,100480.0,100470.0,0.37520505]
[1734087635811,0.59711252,100480.0,100470.0,0.42955833]
[1734087635812,0.81593998,100480.0,100470.0,0.42955833]
[1734087636022,0.81593998,100480.0,100470.0,0.47311101]
[1734087636423,0.81593998,100480.0,100470.0,0.23621668]
[1734087636621,0.87562661,100480.0,100470.0,0.23621668]
[1734087637526,0.87562661,100480.0,100470.0,0.05855268]
[1734087638035,0.88482121,100480.0,100470.0,0.05855268]
[1734087638423,0.88482121,100480.0,100470.0,0.015]
[1734087639120,0.76552099,100480.0,100470.0,0.015]
[1734087639333,0.79782099,100480.0,100470.0,0.015]
[1734087639629,0.049758,100470.0,100460.0,0.00012163]
[1734087639926,0.93185445,100470.0,100460.0,0.00012163]
[1734087640433,1.03138169,100470.0,100460.0,0.00012163]
[1734087640829,1.03238169,100470.0,100460.0,0.00812163]
[1734087641225,1.03238169,100470.0,100460.0,0.01012163]
[1734087641226,0.78913554,100470.0,100460.0,0.01012163]
[1734087642125,0.93826081,100470.0,100460.0,0.01012163]
[1734087642331,0.87838701,100470.0,100460.0,0.01012163]
[1734087643031,0.97350789,100470.0,100460.0,0.01012163]
[1734087644435,1.03338169,100470.0,100460.0,0.01012163]
[1734087645230,0.88425642,100470.0,100460.0,0.01012163]
[1734087645534,0.97344778,100470.0,100460.0,0.01012163]
[1734087649540,0.88425642,100470.0,100460.0,0.01012163]
[1734087650931,0.9734457,100470.0,100460.0,0.01012163]
[1734087651136,1.03338169,100470.0,100460.0,0.01012163]
[1734087654040,1.03338169,100470.0,100460.0,0.01]
[1734087654640,1.0528653,100470.0,100460.0,0.01]
[1734087655246,0.98754484,100470.0,100460.0,0.01]
[1734087655740,0.92508419,100470.0,100460.0,0.01]
[1734087655941,0.69386312,100470.0,100460.0,0.12222365]
[1734087656141,0.81435556,100470.0,100460.0,0.07246065]
[1734087656340,0.69537768,100470.0,100460.0,0.0407]
[1734087659245,0.72805638,100470.0,100460.0,0.0407]
[1734087660259,0.84703426,100470.0,100460.0,0.0407]
[1734087661866,0.81543426,100470.0,100460.0,0.0407]
[1734087662249,0.81543426,100470.0,100460.0,0.08425752]
[1734087663365,0.87532774,100470.0,100460.0,0.0407]
[1734087664262,0.97046709,100470.0,100460.0,0.01]
[1734087664459,1.0619367,100470.0,100460.0,0.01]
[1734087665053,0.96679735,100470.0,100460.0,0.01]
[1734087665965,2.46679735,100470.0,100460.0,0.01]
[1734087666160,2.31767208,100470.0,100460.0,0.01]
[1734087666557,0.81767208,100470.0,100460.0,0.01]
[1734087666964,2.41281143,100470.0,100460.0,0.01]
[1734087667861,2.31767208,100470.0,100460.0,0.01]
[1734087668854,2.31767208,100470.0,100460.0,0.05356137]
[1734087669250,2.31767208,100470.0,100460.0,0.23122537]
[1734087670166,2.31767208,100470.0,100460.0,0.05356137]
[1734087670358,2.31767208,100470.0,100460.0,0.23122537]
[1734087670564,2.31767208,100470.0,100460.0,0.05356137]
[1734087671468,2.31767208,100470.0,100460.0,0.23122537]
[1734087672061,2.31767208,100470.0,100460.0,0.05356137]
[1734087672563,2.41281143,100470.0,100460.0,0.05356137]
[1734087672758,2.41281143,100470.0,100460.0,0.187664]
[1734087672961,2.41281143,100470.0,100460.0,0.01]
[1734087678267,2.23386394,100470.0,100460.0,0.01]
[1734087679178,2.41288868,100470.0,100460.0,0.01]
[1734087681173,2.70833678,100470.0,100460.0,0.01]
[1734087685981,2.52931204,100470.0,100460.0,0.01]
[1734087686875,0.1122314,100450.0,100440.0,0.47955833]
[1734087687077,0.74154689,100450.0,100440.0,0.52312522]
[1734087687580,0.84108404,100450.0,100440.0,0.52312522]
[1734087688073,0.72274382,100450.0,100440.0,0.52812522]
[1734087688468,0.84306587,100450.0,100440.0,0.53012522]
[1734087689277,0.72374382,100450.0,100440.0,0.48655833]
[1734087689580,0.84306188,100450.0,100440.0,0.48655833]
[1734087689769,0.72374382,100450.0,100440.0,0.48655833]
[1734087690171,0.84306216,100450.0,100440.0,0.48655833]
[1734087691083,0.48226216,100450.0,100440.0,0.48655833]
[1734087691282,0.84306216,100450.0,100440.0,0.530126]
[1734087691480,0.78059876,100450.0,100440.0,0.530126]
[1734087691678,0.69388689,100450.0,100440.0,0.530126]
[1734087691874,0.78336276,100450.0,100440.0,0.352462]
[1734087692186,0.78336276,100450.0,100440.0,0.64756093]
[1734087692381,0.42256276,100450.0,100440.0,0.64756093]
[1734087692583,0.78336276,100450.0,100440.0,0.64756093]
[1734087692878,0.78336276,100450.0,100440.0,0.96503287]
[1734087693188,0.78336276,100450.0,100440.0,0.64756093]
[1734087693695,0.78336276,100450.0,100440.0,0.96504925]
[1734087694286,0.69388689,100450.0,100440.0,0.64756093]
[1734087694480,0.70338037,100450.0,100440.0,0.965215]
[1734087694679,0.79287594,100450.0,100440.0,0.965215]
[1734087694878,0.70338037,100450.0,100440.0,0.64756093]
[1734087695079,0.70338037,100450.0,100440.0,0.96520001]
[1734087695378,0.79287627,100450.0,100440.0,0.96520001]
[1734087695579,0.79287627,100450.0,100440.0,1.01497301]
[1734087698784,0.43207627,100450.0,100440.0,1.01497301]
[1734087702591,0.43207627,100450.0,100440.0,0.77807868]
[1734087703087,0.43207627,100450.0,100440.0,1.01547242]
[1734087703489,0.43207627,100450.0,100440.0,0.77807868]
[1734087704192,0.43207627,100450.0,100440.0,1.01547739]
[1734087704388,0.43207627,100450.0,100440.0,0.77807868]
[1734087706191,0.21081424,100450.0,100440.0,0.84054208]
[1734087706489,0.21081424,100450.0,100440.0,1.1946608]
[1734087707286,0.27327764,100450.0,100440.0,1.1946608]
[1734087707795,0.32304564,100450.0,100440.0,1.1946608]
[1734087709794,0.2037273,100450.0,100440.0,1.1946608]
[1734087709994,0.32304564,100450.0,100440.0,1.1946608]
[1734087710397,0.2037273,100450.0,100440.0,1.1946608]
[1734087711396,0.32304564,100450.0,100440.0,1.1946608]
[1734087711594,0.32304564,100450.0,100440.0,0.84054208]
[1734087712999,0.68384564,100450.0,100440.0,0.77807868]
[1734087713196,0.23354974,100450.0,100440.0,0.77807868]
[1734087716292,0.69390671,100450.0,100440.0,0.77807868]
[1734087716599,0.69390671,100450.0,100440.0,0.96569917]
[1734087716901,0.84308198,100450.0,100440.0,0.60449242]
[1734087717090,0.84308198,100450.0,100440.0,0.57139242]
[1734087717286,0.84308198,100450.0,100440.0,0.53949242]
[1734087717897,0.87488198,100450.0,100440.0,0.53949242]
[1734087718491,0.51408198,100450.0,100440.0,0.53949242]
[1734087718692,0.51408198,100450.0,100440.0,0.85835987]
[1734087718900,0.51408198,100450.0,100440.0,0.90192467]
[1734087719096,0.87488198,100450.0,100440.0,0.90192467]
[1734087720293,0.87488198,100450.0,100440.0,0.85835987]
[1734087721006,0.51408198,100450.0,100440.0,0.62096638]
[1734087721303,0.51408198,100450.0,100440.0,0.85842662]
[1734087721506,0.51408198,100450.0,100440.0,0.62096638]
[1734087721700,0.75556364,100450.0,100440.0,0.8584761]
[1734087721905,0.51417623,100450.0,100440.0,0.62096638]
[1734087722602,0.87497623,100450.0,100440.0,0.66453059]
[1734087722912,0.51417623,100450.0,100440.0,0.71430359]
[1734087725601,0.51417623,100450.0,100440.0,0.67073938]
[1734087726000,0.36500096,100450.0,100440.0,0.71430318]
[1734087726308,0.51417623,100450.0,100440.0,0.71430318]
[1734087727509,0.45455576,100450.0,100440.0,1.0684219]
[1734087729398,0.81535576,100450.0,100440.0,1.0684219]
[1734087729602,0.87497623,100450.0,100440.0,0.71430318]
[1734087730411,0.51417623,100450.0,100440.0,0.71430318]
[1734087730602,0.45455561,100450.0,100440.0,1.0684219]
[1734087731614,0.39209221,100450.0,100440.0,1.0684219]
[1734087731799,0.26073524,100450.0,100440.0,1.4916853]
[1734087732002,0.26073524,100450.0,100440.0,1.87025533]
[1734087732209,0.26073524,100450.0,100440.0,1.5751564]
[1734087732407,0.32319864,100450.0,100440.0,1.5751564]
[1734087732806,0.26073524,100450.0,100440.0,1.5751564]
[1734087733313,0.26073524,100450.0,100440.0,1.13930209]
[1734087733804,0.32319864,100450.0,100440.0,1.07683869]
[1734087734114,0.72376364,100450.0,100440.0,0.24451641]
[1734087734313,0.75676364,100450.0,100440.0,0.24451641]
[1734087736215,0.69430024,100450.0,100440.0,0.24451641]
[1734087736410,0.75676364,100450.0,100440.0,0.24451641]
[1734087738417,2.25676364,100450.0,100440.0,0.24451641]
[1734087738925,0.75676364,100450.0,100440.0,0.24451641]
[1734087739106,0.69430024,100450.0,100440.0,0.42262473]
[1734087739309,0.75676364,100450.0,100440.0,0.42262473]
[1734087739505,0.75676364,100450.0,100440.0,0.24451641]
[1734087740114,0.75676364,100450.0,100440.0,0.42262448]
[1734087740314,0.93577397,100450.0,100440.0,0.46619161]
[1734087740817,0.93477397,100450.0,100440.0,0.46119161]
[1734087741016,0.93577397,100450.0,100440.0,0.46119161]
[1734087741717,0.93577397,100450.0,100440.0,0.45919161]
[1734087742315,0.93482207,100450.0,100440.0,0.2216752]
[1734087742513,0.93582207,100450.0,100440.0,0.2216752]
[1734087743124,0.8490621,100450.0,100440.0,0.17810807]
[1734087743416,0.8822621,100450.0,100430.0,0.47732448]
[1734087743608,0.7179841,100440.0,100430.0,0.47732448]
[1734087744317,0.93689851,100440.0,100430.0,0.47732448]
[1734087744910,0.93989851,100440.0,100430.0,0.47732448]
[1734087746920,0.94089851,100440.0,100430.0,0.47732448]
[1734087747116,0.93789851,100440.0,100430.0,0.47732448]
[1734087748327,0.94389851,100440.0,100430.0,0.47732448]
[1734087748518,0.94389851,100440.0,100430.0,0.23980807]
[1734087748519,0.95189851,100440.0,100430.0,0.23980807]
[1734087749424,0.80271421,100440.0,100430.0,0.23980807]
[1734087749620,0.95189851,100440.0,100430.0,0.23980807]
[1734087749825,0.9612844,100440.0,100430.0,0.23980807]
[1734087750427,0.8101001,100440.0,100430.0,0.23980807]
[1734087751126,0.8121001,100440.0,100430.0,0.23980807]
[1734087751529,0.3263733,100440.0,100430.0,0.23980807]
[1734087751728,0.10443068,100440.0,100430.0,0.77225781]
[1734087752041,0.08941892,100450.0,100440.0,0.049773]
[1734087752327,0.08941892,100450.0,100440.0,1.45880359]
[1734087752628,0.08941892,100450.0,100440.0,1.39634019]
[1734087752823,0.13918692,100450.0,100440.0,1.39634019]
[1734087753325,0.20165032,100450.0,100440.0,1.33387679]
[1734087753521,0.1122314,100450.0,100440.0,1.33787679]
[1734087754423,0.1122314,100450.0,100440.0,1.40434019]
[1734087754632,0.1122314,100450.0,100440.0,1.40034019]
[1734087755116,0.1122314,100450.0,100440.0,1.39834019]
[1734087755319,0.049768,100450.0,100440.0,1.39834019]
[1734087756820,0.049768,100450.0,100440.0,1.40122767]
[1734087757824,0.52991353,100460.0,100450.0,0.049768]
[1734087758025,0.16910753,100470.0,100460.0,0.049763]
[1734087758222,0.68058048,100480.0,100470.0,0.049758]
[1734087758421,0.68058048,100480.0,100470.0,0.1734214]
[1734087758422,0.53139618,100480.0,100470.0,0.1734214]
[1734087758622,0.05124865,100480.0,100470.0,0.7119025]
[1734087758834,0.11371205,100480.0,100470.0,0.99250811]
[1734087759033,0.11371205,100480.0,100470.0,0.9489598]
[1734087759724,0.11371205,100480.0,100470.0,0.8864964]
[1734087760028,0.11371205,100480.0,100470.0,0.2886391]
[1734087760332,0.11371205,100480.0,100470.0,0.3511025]
[1734087760522,0.12071205,100480.0,100470.0,0.7119025]
[1734087760831,0.06724865,100480.0,100470.0,0.6504391]
[1734087761031,0.06724865,100480.0,100470.0,0.7129025]
[1734087761237,0.06524865,100480.0,100470.0,0.7129025]
[1734087762322,0.06524865,100480.0,100470.0,0.72243703]
[1734087762830,0.06524865,100480.0,100470.0,0.54475593]
[1734087763328,0.12771205,100480.0,100470.0,0.54475593]
[1734087764433,0.06524865,100480.0,100470.0,0.54475593]
[1734087770028,0.06524865,100480.0,100470.0,0.5352214]
[1734087770231,0.5494818,100480.0,100470.0,0.0315]
[1734087770526,0.64900904,100480.0,100470.0,0.001]
[1734087770736,0.71270904,100480.0,100470.0,0.001]
[1734087770924,0.83205657,100480.0,100470.0,0.001]
[1734087771131,2.33205657,100480.0,100470.0,0.001]
[1734087773736,2.21270904,100480.0,100470.0,0.001]
[1734087774735,2.33205657,100480.0,100470.0,0.001]
[1734087775932,2.33405657,100480.0,100470.0,0.001]
[1734087777536,0.049762,100470.0,100450.0,0.36104896]
[1734087777736,0.4730254,100470.0,100450.0,0.36104896]
[1734087778130,0.57255264,100470.0,100450.0,0.36104896]
[1734087778536,0.57455264,100470.0,100450.0,0.36104896]
[1734087778930,0.049763,100460.0,100450.0,0.36104896]
[1734087779537,0.1122264,100460.0,100450.0,0.36104896]
[1734087779742,0.049763,100460.0,100450.0,0.36104896]
[1734087780948,0.053763,100460.0,100450.0,0.36104896]
[1734087781541,0.053763,100460.0,100450.0,0.59810626]
[1734087783043,0.055763,100460.0,100450.0,0.59810626]
[1734087783436,0.055763,100460.0,100450.0,0.6416649]
[1734087783933,0.059763,100460.0,100450.0,0.6416649]
[1734087784842,0.057763,100460.0,100450.0,0.6416649]
[1734087785041,0.052763,100460.0,100450.0,0.6416649]
[1734087786136,0.054763,100460.0,100450.0,0.6416649]
[1734087787142,0.059763,100460.0,100450.0,0.6416649]
[1734087787640,0.054763,100460.0,100450.0,0.6416649]
[1734087787846,0.052763,100460.0,100450.0,0.6416649]
[1734087788251,0.057763,100460.0,100450.0,0.6416649]
[1734087788547,0.057763,100460.0,100450.0,0.76081824]
[1734087788756,0.059763,100460.0,100450.0,0.76081824]
[1734087789046,0.059763,100460.0,100450.0,1.43939745]
[1734087789246,0.059763,100460.0,100450.0,1.07859745]
[1734087790244,0.054763,100460.0,100450.0,1.07859745]
[1734087791337,0.052763,100460.0,100450.0,1.43898933]
[1734087791542,0.057763,100460.0,100450.0,1.07818933]
[1734087792246,0.059763,100460.0,100450.0,1.07818933]
[1734087793955,0.059763,100460.0,100450.0,0.76081824]
[1734087794339,0.4830264,100460.0,100450.0,0.63925038]
[1734087794540,0.76538439,100460.0,100450.0,0.2370573]
[1734087794754,0.86182116,100460.0,100450.0,0.17781635]
[1734087794944,0.049768,100450.0,100440.0,0.41487365]
[1734087795152,0.59228351,100450.0,100440.0,0.45843862]
[1734087795753,0.59228351,100450.0,100440.0,0.52090202]
[1734087795947,0.59228351,100450.0,100440.0,0.45843862]
[1734087796346,0.59928351,100450.0,100440.0,0.50821162]
[1734087797753,0.69884048,100450.0,100440.0,0.50821162]
[1734087798762,0.70084048,100450.0,100440.0,0.50821162]
[1734087798946,0.70784048,100450.0,100440.0,0.50821162]
[1734087799443,0.71740265,100450.0,100440.0,0.50821162]
[1734087799643,0.34904048,100450.0,100440.0,0.57067502]
[1734087801049,0.34904048,100450.0,100440.0,0.39285867]
[1734087801246,0.22978837,100450.0,100440.0,0.99984585]
[1734087801450,0.34904048,100450.0,100440.0,0.57073198]
[1734087801662,0.34704048,100450.0,100440.0,0.57073198]
[1734087802250,0.33804048,100450.0,100440.0,0.57073198]
[1734087802450,0.34904048,100450.0,100440.0,0.57073198]
[1734087802751,0.70984048,100450.0,100440.0,0.50826858]
[1734087803062,0.70984048,100450.0,100440.0,0.46470361]
[1734087803251,0.70784048,100450.0,100440.0,0.46470361]
[1734087805549,0.70784048,100450.0,100440.0,0.41493061]
[1734087805755,0.70984048,100450.0,100440.0,0.41493061]
[1734087806356,0.70984048,100450.0,100440.0,0.22143808]
[1734087806748,0.61028351,100450.0,100440.0,0.50826838]
[1734087806957,0.61028351,100450.0,100440.0,0.27121108]
[1734087807259,0.24948351,100450.0,100440.0,0.27121108]
[1734087807460,0.61028351,100450.0,100440.0,0.27121108]
[1734087807650,0.70084048,100450.0,100440.0,0.22143808]
[1734087807846,0.77230388,100450.0,100440.0,0.17787331]
[1734087808052,0.77230388,100450.0,100430.0,0.53040761]
[1734087808053,0.049773,100440.0,100430.0,0.53040761]
[1734087808248,0.59226213,100440.0,100430.0,0.50827487]
[1734087808559,0.65626213,100440.0,100430.0,0.50827487]
[1734087808759,0.7558191,100440.0,100430.0,0.50827487]
[1734087808956,0.7558191,100440.0,100430.0,0.33368097]
[1734087809158,0.6618557,100440.0,100430.0,0.33368097]
[1734087809360,0.3635191,100440.0,100430.0,0.57073827]
[1734087809659,0.3010557,100440.0,100430.0,0.57073827]
[1734087810155,0.3635191,100440.0,100430.0,0.57073827]
[1734087810364,0.3725191,100440.0,100430.0,0.57073827]
[1734087810852,0.3100557,100440.0,100430.0,0.93153827]
[1734087811058,0.3100557,100440.0,100430.0,0.57073827]
[1734087811261,0.6708557,100440.0,100430.0,0.57073827]
[1734087811458,0.7333191,100440.0,100430.0,0.33368097]
[1734087812160,0.7423191,100440.0,100430.0,0.33368097]
[1734087813064,0.7423191,100440.0,100430.0,0.27121757]
[1734087813565,0.7423191,100440.0,100430.0,0.09334426]
[1734087814063,0.3815191,100440.0,100430.0,0.27121757]
[1734087814457,0.3815191,100440.0,100430.0,0.09334426]
[1734087815253,0.3815191,100440.0,100430.0,0.27121757]
[1734087815455,0.3815191,100440.0,100430.0,0.09334426]
[1734087815853,0.3815191,100440.0,100430.0,0.27121757]
[1734087816260,0.3725191,100440.0,100430.0,0.27121757]
[1734087816468,0.3815191,100440.0,100430.0,0.09334426]
[1734087816966,0.3815191,100440.0,100430.0,0.27121757]
[1734087817169,0.3815191,100440.0,100430.0,0.09334426]
[1734087817360,0.7423191,100440.0,100430.0,0.09334426]
[1734087817762,0.8915034,100440.0,100430.0,0.09334426]
[1734087818270,0.5307034,100440.0,100430.0,0.09334426]
[1734087818469,0.33618303,100440.0,100430.0,0.51660766]
[1734087818671,0.17799873,100440.0,100430.0,0.75758097]
[1734087818964,0.18699873,100440.0,100430.0,0.99463827]
[1734087819357,0.18699873,100440.0,100430.0,0.63383827]
[1734087819667,0.18699873,100440.0,100430.0,0.75758097]
[1734087820668,0.18699873,100440.0,100430.0,0.99463827]
[1734087820971,0.18699873,100440.0,100430.0,0.75758097]
[1734087821566,0.18699873,100440.0,100430.0,0.99463827]
[1734087822571,0.17799873,100440.0,100430.0,0.99463827]
[1734087822775,0.18699873,100440.0,100430.0,0.99463827]
[1734087823568,0.33618303,100440.0,100430.0,0.99463827]
[1734087823761,0.28641003,100440.0,100430.0,1.1135994]
[1734087823960,0.13722573,100440.0,100430.0,1.38748382]
[1734087824163,0.018,100440.0,100430.0,1.50454524]
[1734087824572,0.018,100440.0,100430.0,1.89494597]
[1734087824871,0.11922573,100450.0,100440.0,0.049773]
[1734087825167,0.11922573,100450.0,100440.0,1.80447032]
[1734087826078,0.12822573,100450.0,100440.0,1.80447032]
[1734087826376,0.13722573,100450.0,100440.0,1.80447032]
[1734087827470,0.13722573,100450.0,100440.0,1.5305859]
[1734087827974,0.11482391,100450.0,100440.0,1.57103363]
[1734087828278,0.02770574,100450.0,100440.0,1.18483363]
[1734087828471,0.018,100450.0,100440.0,1.06606132]
[1734087828874,0.018,100450.0,100440.0,1.46197118]
[1734087829075,0.018,100450.0,100440.0,1.42152345]
[1734087829274,0.014,100450.0,100440.0,1.42152345]
[1734087829578,0.014,100450.0,100440.0,1.42252345]
[1734087829777,0.014,100450.0,100440.0,1.57430326]
[1734087830074,0.014,100450.0,100440.0,1.69899649]
[1734087830885,0.014,100450.0,100440.0,1.1256683]
[1734087831274,0.014,100450.0,100440.0,1.68963894]
[1734087831872,0.009,100450.0,100440.0,1.68963894]
[1734087832080,0.017,100450.0,100440.0,1.69063894]
[1734087832382,0.017,100450.0,100440.0,1.62817554]
[1734087832587,0.017,100450.0,100440.0,1.62717554]
[1734087832889,0.017,100450.0,100440.0,1.26637554]
[1734087833081,0.017,100450.0,100440.0,1.68963894]
[1734087833280,0.017,100450.0,100440.0,1.41250139]
[1734087834180,0.017,100450.0,100440.0,1.03564686]
[1734087834784,0.017,100450.0,100440.0,0.73611977]
[1734087835579,0.009,100450.0,100440.0,0.73511977]
[1734087835777,0.016,100450.0,100440.0,0.73511977]
[1734087836784,0.016,100450.0,100440.0,0.64125637]
[1734087836785,0.1282314,100450.0,100440.0,0.64125637]
[1734087836986,0.1282314,100450.0,100440.0,0.70371977]
[1734087837482,0.065768,100450.0,100440.0,0.70371977]
[1734087837689,0.056768,100450.0,100440.0,0.70371977]
[1734087837888,0.062768,100450.0,100440.0,0.70371977]
[1734087838193,0.1252314,100450.0,100440.0,0.64125637]
[1734087838376,0.6654157,100450.0,100440.0,0.049773]
[1734087838577,0.6928157,100450.0,100440.0,0.09333397]
[1734087838780,0.979383,100450.0,100440.0,0.04356097]
[1734087838983,0.049773,100440.0,100430.0,0.4984384]
[1734087839293,0.26116867,100440.0,100430.0,0.54200529]
[1734087840292,0.26116867,100440.0,100430.0,0.15580529]
[1734087840791,0.19870527,100440.0,100430.0,0.15580529]
[1734087841178,0.20770527,100440.0,100430.0,0.15580529]
[1734087841377,0.20770527,100440.0,100430.0,0.16546648]
[1734087841580,0.21570527,100440.0,100430.0,0.16546648]
[1734087843780,0.21370527,100440.0,100430.0,0.16546648]
[1734087844583,0.27616867,100440.0,100430.0,0.10300308]
[1734087844896,0.31126867,100440.0,100430.0,0.05943619]
[1734087845089,0.490279,100440.0,100430.0,0.05943619]
[1734087845589,0.489279,100440.0,100430.0,0.05943619]
[1734087845986,0.489279,100440.0,100430.0,0.1030034]
[1734087846581,0.34034673,100440.0,100430.0,0.15580561]
[1734087846789,0.19807581,100440.0,100430.0,0.51660561]
[1734087846992,0.37708614,100440.0,100430.0,0.51660561]
[1734087847189,0.37808614,100440.0,100430.0,0.51660561]
[1734087848100,0.42685914,100440.0,100430.0,0.51660561]
[1734087848796,0.41785914,100440.0,100430.0,0.51660561]
[1734087849000,0.42685914,100440.0,100430.0,0.51660561]
[1734087849889,0.41785914,100440.0,100430.0,0.51660561]
[1734087850197,0.42685914,100440.0,100430.0,0.51660561]
[1734087850690,0.41885914,100440.0,100430.0,0.52626776]
[1734087850892,0.42685914,100440.0,100430.0,0.16546776]
[1734087851201,0.27788333,100440.0,100430.0,0.16546776]
[1734087852805,0.26888333,100440.0,100430.0,0.16546776]
[1734087853096,0.27788333,100440.0,100430.0,0.16546776]
[1734087853302,0.27788333,100440.0,100430.0,0.52626776]
[1734087853303,0.37709309,100440.0,100430.0,0.52626776]
[1734087853594,0.37709309,100440.0,100430.0,0.58873116]
[1734087853595,0.34499309,100440.0,100430.0,0.58873116]
[1734087853799,0.16698276,100440.0,100430.0,0.62053116]
[1734087854099,0.17901033,100450.0,100440.0,0.049773]
[1734087854100,0.14898276,100450.0,100440.0,0.049773]
[1734087854291,0.14898276,100450.0,100440.0,0.64216701]
[1734087855500,0.15698276,100450.0,100440.0,0.64216701]
[1734087856402,0.16598276,100450.0,100440.0,0.64316701]
[1734087857493,0.16598276,100450.0,100440.0,0.51824021]
[1734087857796,0.16598276,100450.0,100440.0,0.64316701]
[1734087861202,0.16598276,100450.0,100440.0,1.02936701]
[1734087862204,0.15698276,100450.0,100440.0,1.02836701]